fUSD/lending_fUSD_20241015
["ID","MTS","AMOUNT","RATE_DAILY","PERIOD"]
[340281801,1729002635277,-2015.63,0.000109,2]
[340281802,1729002635288,-3342.03293249,0.000109,2]
[340281803,1729002635297,-856.68,0.00010959,2]
[340281804,1729002635307,-1372.2,0.00010973,2]
[340281805,1729002635316,-161.83108712,0.00010973,2]
[340281806,1729002635325,-500.0,0.00010973,2]
[340281807,1729002635334,-1507.75210529,0.00010998,2]
[340281808,1729002635343,-150.0,0.00010999,2]
[340281809,1729002635352,-189.00161011,0.00010999,2]
[340281810,1729002635362,-429.52177944,0.00010999,2]
[340281811,1729002635371,-61280.21123994,0.00011,2]
[340281812,1729002635383,-426097.49545615,0.00011,2]
[340281813,1729002635394,-4000.0,0.00011,2]
[340281814,1729002635434,-594.99826677,0.00011,2]
[340281815,1729002635444,-2168.33737172,0.00011,2]
[340281816,1729002635456,-345.5,0.00011,2]
[340281823,1729002637813,-328.53229629,0.00011,2]
[340281824,1729002637825,-1334.397,0.00011,2]
[340281825,1729002637836,-1350.64,0.00011,2]
[340281826,1729002638039,-134366.05646336,0.00011,2]
[340281827,1729002638051,-735.3530768,0.00011,2]
[340281828,1729002638066,-4090.92332488,0.00011,2]
[340281829,1729002638081,-34891.18471821,0.00011,2]
[340281830,1729002638092,-15743.22138909,0.00011,2]
[340281831,1729002638102,-29126.45419883,0.00011,2]
[340281832,1729002638114,-1539.63368549,0.00011,2]
[340281833,1729002638139,-885.17604503,0.00011,2]
[340281834,1729002638152,-30857.86459975,0.00011,2]
[340281845,1729002638594,-559.70987663,0.00011,2]
[340281846,1729002638605,-1680.14358,0.00011,2]
[340281847,1729002638617,-793.48923202,0.00011,2]
[340281848,1729002638628,-334.535,0.00011,2]
[340281849,1729002638642,-100694.5443833,0.00011,2]
[340281850,1729002638652,-23398.92101407,0.00011,2]
[340281858,1729002639964,-96518.30000944,0.00011,2]
[340281859,1729002640054,-6729.895775,0.00011,2]
[340281860,1729002640067,-131592.20169034,0.00011,2]
[340281861,1729002640082,-1338.78,0.00011,2]
[340281862,1729002640160,-849.54586176,0.00011,2]
[340281863,1729002640247,-18494.1,0.00011,2]
[340281872,1729002642954,-5960.69949992,0.00011,2]
[340281873,1729002642967,-2864.9130586,0.00011,2]
[340281874,1729002642979,-3476.5447,0.00011,2]
[340281875,1729002642991,-2428.0,0.00011,2]
[340281876,1729002643110,-2320.0,0.00011,2]
[340281877,1729002643122,-8140.2985015,0.00011,2]
[340281878,1729002643133,-1490.79089986,0.00011,2]
[340281879,1729002643144,-772.82854254,0.00011,2]
[340281880,1729002643156,-6655.27794624,0.00011,2]
[340281881,1729002643197,-438.82932898,0.00011,2]
[340281882,1729002643247,-266.26,0.00011,2]
[340281883,1729002643359,-943061.77694785,0.00011,2]
[340281902,1729002645842,-384.64869182,0.00010999,2]
[340281904,1729002645851,-2985.30130818,0.00011,2]
[340281906,1729002645863,-30039.13018329,0.00011,2]
[340281908,1729002645875,-1007.9744,0.00011,2]
[340281911,1729002645886,-336085.86395,0.00011,2]
[340281916,1729002645923,-30984.186565,0.00011,2]
[340281924,1729002645991,-1671.70061826,0.00011,2]
[340281928,1729002646031,-1004.97915295,0.00011,2]
[340281929,1729002646042,-72388.84316005,0.00011,2]
[340281930,1729002646117,-264.33999999,0.00011,2]
[340281931,1729002646130,-219999.31698639,0.00011,2]
[340281955,1729002663921,208.5,0.0001389,30]
[340281956,1729002852821,-14801.0138,0.00010799,2]
[340281957,1729002852841,-208.1001637,0.000109,2]
[340281958,1729002852860,-327.145,0.000109,2]
[340281959,1729002852880,-155.48,0.00010959,2]
[340281960,1729002852900,-500.0,0.00010973,2]
[340281961,1729002852920,-1625.24118168,0.00010997,2]
[340281962,1729002852941,-7742.54321273,0.00010997,2]
[340281963,1729002852960,-150.0,0.00010999,2]
[340281964,1729002852987,-260.50813024,0.00010999,2]
[340281965,1729002853010,-15229.96851165,0.00011,2]
[340281966,1729002855297,-2146.63160663,0.0001421,7]
[340281978,1729003470846,550.0,0.0001,2]
[340281980,1729003594521,614.56,9.205e-05,2]
[340281988,1729003779934,831.5,0.00027,60]
[340282009,1729003831984,-150.71268515,0.00010678,2]
[340282011,1729003831993,-1236.91951615,0.00010698,2]
[340282013,1729003832006,-2028.79395895,0.00010698,2]
[340282016,1729003832022,-2646.7971249,0.00010698,2]
[340282018,1729003832032,-155.591,0.0001078,2]
[340282020,1729003832041,-170.679,0.0001078,2]
[340282022,1729003832051,-250.0,0.00010846,2]
[340282024,1729003832060,-897.3,0.00010893,2]
[340282026,1729003832069,-7380.71015404,0.000109,2]
[340282028,1729003832077,-156.94994874,0.000109,2]
[340282031,1729003832106,-51.15021496,0.000109,2]
[340282033,1729003832115,-204.9313943,0.000109,2]
[340282035,1729003832124,-163.57,0.00010959,2]
[340282037,1729003832134,-156.55,0.00010959,2]
[340282039,1729003832143,-500.0,0.00010959,2]
[340282041,1729003832152,-2000.0,0.00010959,2]
[340282043,1729003832162,-349.54,0.00010959,2]
[340282045,1729003832172,-159.43471035,0.00010973,2]
[340282047,1729003832181,-439.63575528,0.00010973,2]
[340282049,1729003832191,-150.0,0.00010989,2]
[340282051,1729003832200,-168.34,0.0001099,2]
[340282053,1729003832210,-5651.01,0.0001099,2]
[340282055,1729003832220,-150.99,0.0001099,2]
[340282056,1729003832229,-499.99,0.0001099,2]
[340282057,1729003832238,-177.66837527,0.0001099,2]
[340282058,1729003832248,-429.92,0.00010999,2]
[340282059,1729003832257,-999.99,0.00010999,2]
[340282060,1729003832267,-412.60561762,0.00010999,2]
[340282061,1729003832275,-3636.52492603,0.00010999,2]
[340282062,1729003832294,-1563.1042954,0.00010999,2]
[340282063,1729003832304,-1065.6601475,0.00010999,2]
[340282064,1729003832320,-2789.38063107,0.00010999,2]
[340282065,1729003832329,-299.99,0.00010999,2]
[340282066,1729003832338,-2666.26338993,0.00010999,2]
[340282067,1729003832460,-2064.51661007,0.00010999,2]
[340282068,1729003832469,-150.0,0.00010999,2]
[340282069,1729003832478,-14387.166837,0.00011,2]
[340282071,1729003832489,-105796.89966395,0.00011,2]
[340282072,1729003832500,-154504.79999955,0.00011,2]
[340282074,1729003832512,-4743.56537582,0.00011,2]
[340282076,1729003832522,-66039.6,0.00011,2]
[340282365,1729003838081,-917.0652,0.0001068,2]
[340282366,1729003838095,-2390.32093842,0.0001068,2]
[340282367,1729003838111,-269.21074508,0.0001068,2]
[340282368,1729003838137,-3605.83925108,0.0001068,2]
[340282369,1729003838147,-1688.22,0.00010845,2]
[340282370,1729003838157,-161.50022641,0.000109,2]
[340282371,1729003838166,-24389.79376902,0.00011,2]
[340282372,1729003838260,-127011.64508232,0.00011,2]
[340282373,1729003838272,-3205.34777435,0.00011,2]
[340282374,1729003838285,-5710.41424809,0.00011,2]
[340282375,1729003838296,-108722.58973474,0.00011,2]
[340282376,1729003838308,-1745.68693632,0.00011,2]
[340282377,1729003838332,-194.53991876,0.000109,2]
[340282378,1729003838342,-134.01508124,0.00011,2]
[340282379,1729003838356,-1804.45375715,0.00011,2]
[340282380,1729003838371,-26314.82409435,0.00011,2]
[340282381,1729003838449,-1363125.38271865,0.00011,2]
[340282382,1729003838460,-1147347.01545081,0.00011,2]
[340282383,1729003838472,-130822.08551998,0.00011,2]
[340282384,1729003838483,-1164.29096619,0.00011,2]
[340282385,1729003838495,-1639.31709,0.00011,2]
[340282484,1729003840183,-856.68,0.00010959,2]
[340282485,1729003840342,-500.0,0.00010999,2]
[340282486,1729003840356,-169.3199996,0.00010999,2]
[340282487,1729003840368,-224.75153541,0.00010999,2]
[340282488,1729003840378,-500.0,0.00010999,2]
[340282489,1729003840387,-132865.57546057,0.00011,2]
[340282490,1729003840399,-3303.44873815,0.00011,2]
[340282491,1729003840418,-402.88194249,0.00010999,2]
[340282492,1729003840428,-20619.26766674,0.00011,2]
[340282493,1729003840440,-16165.24875015,0.00011,2]
[340282494,1729003840452,-23000.0,0.00011,2]
[340282495,1729003840463,-514.89599162,0.00011,2]
[340282496,1729003840478,-792.81019852,0.00011,2]
[340282497,1729003840516,-289.6333911,0.00011,2]
[340282498,1729003840527,-182248.53019274,0.00011,2]
[340282499,1729003840539,-526.9937392,0.00011,2]
[340282624,1729003843131,-327499.99999995,0.00011,2]
[340282626,1729003843143,-20018.2983,0.00011,2]
[340282638,1729003843251,-66207.95195379,0.00011,2]
[340282640,1729003843263,-491.755,0.00011,2]
[340282642,1729003843275,-877820.83027113,0.00011,2]
[340282644,1729003843283,-43861.86430457,0.00011,2]
[340282646,1729003843293,-1500.0,0.00011,2]
[340282648,1729003843302,-1500.0,0.00011,2]
[340282650,1729003843311,-1500.0,0.00011,2]
[340282652,1729003843320,-1846.97,0.00011,2]
[340282654,1729003843330,-150.99,0.00011,2]
[340282656,1729003843339,-6597.396,0.00011,2]
[340282658,1729003843348,-1372.2,0.00011,2]
[340282660,1729003843363,-336.84,0.00011367,2]
[340282662,1729003843373,-614.56,0.00011469,2]
[340282664,1729003843382,-156.55,0.00011507,2]
[340282666,1729003843391,-2751.0,0.00011507,2]
[340282668,1729003843400,-1500.0,0.00011535,2]
[340282670,1729003843409,-395.15,0.00011764,2]
[340282672,1729003843419,-250.0,0.00011829,2]
[340282674,1729003843427,-1160.95,0.00011861,2]
[340282676,1729003843436,-200.83,0.00011931,2]
[340282678,1729003843445,-600.0,0.00012,2]
[340282680,1729003843454,-18451.19,0.0001203,2]
[340282682,1729003843464,-150.0,0.00012033,2]
[340282684,1729003843473,-156.55,0.00012055,2]
[340282686,1729003843482,-113103.6859043,0.00012129,2]
[340282688,1729003843491,-250.0,0.000122,2]
[340282690,1729003843500,-150.0,0.00012266,2]
[340282692,1729003843509,-600.0,0.00012349,2]
[340282693,1729003843518,-7380.71015404,0.00012456,2]
[340282695,1729003843528,-156.55,0.00012603,2]
[340282697,1729003843537,-7000.0,0.00012669,2]
[340282699,1729003843546,-336.84,0.00012787,2]
[340282701,1729003843556,-156.55,0.00013151,2]
[340282720,1729003843723,-180.0,0.00013197,2]
[340282722,1729003843733,-200.0,0.00013515,2]
[340282724,1729003843743,-500.0,0.00013699,2]
[340282726,1729003843753,-2566.41,0.00013699,2]
[340282728,1729003843762,-614.56,0.00013733,2]
[340282730,1729003843771,-194190.713049,0.000138,2]
[340282732,1729003843781,-600.0,0.00013892,2]
[340282734,1729003843790,-348.49,0.000139,2]
[340282736,1729003843801,-16462.9174345,0.000139,2]
[340282738,1729003843810,-5385.83531641,0.00013994,2]
[340282740,1729003843820,-650.0,0.00014,2]
[340282742,1729003843829,-7380.71015404,0.00014011,2]
[340282744,1729003843838,-336.84,0.00014208,2]
[340282746,1729003843847,-438.31,0.00014798,2]
[340282748,1729003843862,-897.3,0.0001525,2]
[340282750,1729003843872,-600.0,0.00015436,2]
[340282752,1729003843881,-438.31,0.00015538,2]
[340282754,1729003843891,-7380.71015404,0.00015567,2]
[340282756,1729003843900,-336.84,0.00015629,2]
[340282758,1729003843910,-151.87,0.00015836,2]
[340282760,1729003843919,-614.56,0.00015997,2]
[340282762,1729003843928,-438.31,0.00016278,2]
[340282764,1729003843938,-156.37,0.00016438,2]
[340282766,1729003843948,-162.03,0.00016438,2]
[340282768,1729003843958,-800.0,0.0001678,2]
[340282770,1729003843971,-500.0,0.0001678,2]
[340282772,1729003843981,-801.0,0.00016875,2]
[340282774,1729003843990,-600.0,0.00016979,2]
[340282776,1729003843999,-438.31,0.00017018,2]
[340282778,1729003844010,-336.84,0.0001705,2]
[340282780,1729003844019,-7380.71015404,0.00017122,2]
[340282782,1729003844028,-438.31,0.00017758,2]
[340282784,1729003844040,-799.0,0.00017763,2]
[340282786,1729003844049,-801.0,0.00017763,2]
[340282788,1729003844058,-800.0,0.00017876,2]
[340282789,1729003844067,-500.0,0.00017876,2]
[340282792,1729003844078,-200.83,0.00017896,2]
[340282794,1729003844087,-194.53991875,0.000179,2]
[340282796,1729003844097,-614.56,0.00018261,2]
[340282798,1729003844110,-156.37,0.00018493,2]
[340282800,1729003844119,-600.0,0.00018523,2]
[340282802,1729003844129,-801.0,0.00018651,2]
[340282803,1729003844138,-7380.71015404,0.00018678,2]
[340282804,1729003844147,-1000.0,0.00018972,2]
[340282805,1729003844157,-1700.0,0.00018972,2]
[340282806,1729003844167,-800.0,0.00018972,2]
[340282807,1729003844176,-500.0,0.00018972,2]
[340282808,1729003844186,-187.28,0.00019178,2]
[340282809,1729003844195,-151.87,0.00019796,2]
[340282810,1729003844204,-1000.0,0.00020068,2]
[340282811,1729003844213,-1700.0,0.00020068,2]
[340282812,1729003844223,-800.0,0.00020068,2]
[340282813,1729003844232,-918.29213569,0.0002021,3]
[340282814,1729003844242,-918.29213569,0.0002021,3]
[340282815,1729003844251,-755.0,0.00020233,2]
[340282816,1729003844260,-7380.71015404,0.00020233,2]
[340282818,1729003844270,-614.56,0.00020524,2]
[340282819,1729003844278,-400.0,0.00020535,2]
[340282820,1729003844288,-156.37,0.00020548,2]
[340282821,1729003844297,-350.87824,0.000207,2]
[340282822,1729003844307,-1741.0,0.000208,3]
[340282823,1729003844316,-1048.0,0.000208,3]
[340282824,1729003844326,-7559.57961936,0.0002088,2]
[340282825,1729003844336,-980.50255554,0.0002099,2]
[340282826,1729003844345,-150.0,0.00021,2]
[340282827,1729003844357,-153.974256,0.00021007,2]
[340282828,1729003844366,-152.0,0.0002109,3]
[340282829,1729003844376,-1000.0,0.00021164,2]
[340282830,1729003844386,-1700.0,0.00021164,2]
[340282831,1729003844395,-500.0,0.00021164,2]
[340282832,1729003844405,-172.24,0.00021321,2]
[340282833,1729003844414,-7380.71015404,0.00021789,2]
[340282834,1729003844423,-381.55,0.00022137,2]
[340282835,1729003844432,-281.07,0.00022137,2]
[340282836,1729003844442,-1416.1,0.00022137,30]
[340282837,1729003844451,-1000.0,0.0002226,2]
[340282838,1729003844460,-1700.0,0.0002226,2]
[340282839,1729003844470,-800.0,0.0002226,2]
[340282840,1729003844479,-348.49,0.000224,14]
[340282841,1729003844488,-2110.0,0.000225,2]
[340282842,1729003844497,-1022.01292483,0.000225,2]
[340282843,1729003844507,-3000.0,0.000225,2]
[340282844,1729003844516,-156.37,0.00022603,2]
[340282845,1729003844525,-614.56,0.00022788,2]
[340282846,1729003844534,-2110.0,0.00023,2]
[340282847,1729003844543,-1007.52,0.00023,2]
[340282848,1729003844552,-46838.73088283,0.00023,5]
[340282849,1729003844568,-5021.08589322,0.00023,5]
[340282850,1729003844590,-3039.9475843,0.00023,5]
[340282851,1729003844604,-5219.477282,0.00023,5]
[340282852,1729003844615,-44929.02542764,0.00023,5]
[340282866,1729003846021,-3165.32762847,0.00023,5]
[340282867,1729003846036,-47630.47652576,0.00023,5]
[340282868,1729003846051,-708.78488317,0.00023,5]
[340282869,1729003846081,-3127.68173896,0.00023,5]
[340282870,1729003846120,-17227.30039404,0.00023,5]
[340282871,1729003846130,-172.0,0.000231,5]
[340282872,1729003846140,-400.0,0.00023102,2]
[340282873,1729003846150,-7380.71015404,0.00023344,2]
[340282874,1729003846160,-1000.0,0.00023356,2]
[340282875,1729003846169,-500.0,0.00023356,2]
[340282876,1729003846178,-2110.0,0.000235,2]
[340282877,1729003846188,-449.0,0.00023584,2]
[340282878,1729003846198,-1245.0,0.00023584,2]
[340282879,1729003846207,-812.0,0.00023584,2]
[340282880,1729003846216,-560.0,0.00023584,2]
[340282881,1729003846226,-150.0,0.00023584,2]
[340282882,1729003846236,-935.0,0.00023584,2]
[340282883,1729003846246,-555.0,0.00023584,2]
[340282884,1729003846255,-1908.0,0.00023584,2]
[340282885,1729003846265,-3356.0,0.00023584,2]
[340282886,1729003846274,-809.0,0.00023584,2]
[340282887,1729003846284,-250.0,0.00023584,2]
[340282888,1729003846294,-150.0,0.00023584,2]
[340282889,1729003846304,-31.01655186,0.00023584,2]
[340282890,1729003846316,-187.98344814,0.00023584,2]
[340282891,1729003846325,-264.337,0.00023584,2]
[340282892,1729003846335,-4864.719,0.00023584,2]
[340282893,1729003846345,-299.828,0.00023584,2]
[340282894,1729003846358,-250.0,0.00023584,2]
[340282896,1729003846367,-200.0,0.00023584,2]
[340282898,1729003846376,-286.694,0.00023584,2]
[340282899,1729003846386,-163.849,0.00023584,2]
[340282901,1729003846395,-1082.0,0.00023584,2]
[340282903,1729003846405,-150.0,0.00023584,2]
[340282905,1729003846415,-151.87,0.00023755,2]
[340282907,1729003846426,-1396.0,0.000238,2]
[340282909,1729003846436,-500.0,0.00024,2]
[340282911,1729003846446,-2110.0,0.00024,2]
[340282913,1729003846455,-500.0,0.00024,5]
[340282915,1729003846466,-152.0,0.0002406,4]
[340282917,1729003846475,-320.22,0.00024192,2]
[340282919,1729003846485,-8433.95,0.000244,6]
[340282921,1729003846494,-574.2,0.000244,6]
[340282923,1729003846503,-1460.82,0.000244,6]
[340282925,1729003846512,-5135.78210424,0.000244,6]
[340282927,1729003846524,-1308.0,0.000244,6]
[340282929,1729003846535,-2015.8834364,0.000244,6]
[340282930,1729003846546,-3275.05,0.000244,6]
[340282931,1729003846557,-12381.90329816,0.000244,6]
[340282932,1729003846569,-1309.9211612,0.000244,6]
[340282933,1729003846578,-1000.0,0.00024452,2]
[340282934,1729003846588,-4.08650984,0.00024452,2]
[340282935,1729003846600,-1695.91349016,0.00024452,2]
[340282936,1729003846614,-800.0,0.00024452,2]
[340282937,1729003846625,-1000.0,0.000245,2]
[340282939,1729003846635,-2110.0,0.000245,2]
[340282941,1729003846644,-500.0,0.000245,5]
[340282943,1729003846654,-1000.0,0.000245,2]
[340282945,1729003846663,-217.0,0.0002455,2]
[340282947,1729003846674,-206.0,0.0002455,2]
[340282948,1729003846683,-375.0,0.00024657,2]
[340282963,1729003846818,-1000.0,0.00024658,2]
[340282964,1729003846829,-1000.0,0.00024658,2]
[340282965,1729003846838,-1000.0,0.00024658,2]
[340282967,1729003846848,-1000.0,0.00024658,2]
[340282969,1729003846863,-1000.0,0.00024658,2]
[340282971,1729003846872,-9.49730154,0.00024658,2]
[340282973,1729003846883,-990.50269846,0.00024658,2]
[340282975,1729003846892,-1000.0,0.00024658,2]
[340282977,1729003846901,-1000.0,0.00024658,2]
[340282979,1729003846911,-1000.0,0.00024658,2]
[340282981,1729003846920,-1000.0,0.00024658,2]
[340282983,1729003846931,-1000.0,0.00024658,2]
[340282985,1729003846941,-1000.0,0.00024658,2]
[340282987,1729003846951,-1000.0,0.00024658,2]
[340282989,1729003846965,-1000.0,0.00024658,2]
[340282991,1729003846975,-1000.0,0.00024658,2]
[340282993,1729003846985,-1000.0,0.00024658,2]
[340282995,1729003846996,-1000.0,0.00024658,2]
[340282997,1729003847006,-1000.0,0.00024658,2]
[340282999,1729003847016,-130.99437449,0.00024658,2]
[340283002,1729003847033,-690.600222,0.00024658,2]
[340283016,1729003847165,-178.40540351,0.00024658,2]
[340283018,1729003847176,-1000.0,0.00024658,2]
[340283020,1729003847186,-1000.0,0.00024658,2]
[340283022,1729003847195,-1000.0,0.00024658,2]
[340283024,1729003847206,-1000.0,0.00024658,2]
[340283026,1729003847215,-1000.0,0.00024658,2]
[340283028,1729003847225,-1000.0,0.00024658,2]
[340283030,1729003847234,-1000.0,0.00024658,2]
[340283032,1729003847244,-1000.0,0.00024658,2]
[340283033,1729003847253,-1000.0,0.00024658,2]
[340283035,1729003847263,-1000.0,0.00024658,2]
[340283037,1729003847273,-1000.0,0.00024658,2]
[340283039,1729003847283,-1000.0,0.00024658,2]
[340283041,1729003847294,-1000.0,0.00024658,2]
[340283043,1729003847303,-1000.0,0.00024658,2]
[340283045,1729003847312,-1000.0,0.00024658,2]
[340283047,1729003847321,-1000.0,0.00024658,2]
[340283049,1729003847331,-274.53753954,0.00024658,2]
[340283051,1729003847346,-725.46246046,0.00024658,2]
[340283053,1729003847359,-1000.0,0.00024658,2]
[340283055,1729003847369,-1000.0,0.00024658,2]
[340283057,1729003847379,-1000.0,0.00024658,2]
[340283059,1729003847389,-1000.0,0.00024658,2]
[340283061,1729003847398,-1000.0,0.00024658,2]
[340283063,1729003847407,-1000.0,0.00024658,2]
[340283064,1729003847416,-940.0,0.00024658,2]
[340283066,1729003847426,-1000.0,0.00024658,2]
[340283068,1729003847435,-156.37,0.00024658,2]
[340283070,1729003847444,-348.49,0.000247,14]
[340283072,1729003847455,-167.24,0.00024708,2]
[340283074,1729003847465,-1416.1,0.00024721,30]
[340283076,1729003847474,-11896.27712732,0.0002475,2]
[340283078,1729003847484,-1024.86305053,0.00024768,2]
[340283081,1729003847494,-150.0,0.00024775,2]
[340283083,1729003847508,-386.01,0.000248,7]
[340283085,1729003847518,-500.0,0.00024838,2]
[340283086,1729003847528,-500.0,0.00024847,2]
[340283088,1729003847538,-500.0,0.00024856,2]
[340283090,1729003847548,-500.0,0.00024865,2]
[340283092,1729003847557,-5800.0,0.00024874,2]
[340283094,1729003847567,-500.0,0.00024874,2]
[340283096,1729003847578,-697.32480082,0.00024882,2]
[340283098,1729003847591,-5102.67519918,0.00024882,2]
[340283100,1729003847600,-500.0,0.00024882,2]
[340283102,1729003847619,-1991.21622299,0.0002489,2]
[340283104,1729003847628,-5800.0,0.00024891,2]
[340283106,1729003847638,-500.0,0.00024891,2]
[340283108,1729003847648,-5800.0,0.00024899,2]
[340283110,1729003847658,-1981.32,0.000249,2]
[340283112,1729003847669,-500.0,0.000249,2]
[340283114,1729003847679,-7380.71015404,0.000249,2]
[340283116,1729003847690,-250.0,0.000249,7]
[340283119,1729003847700,-285.4,0.000249,7]
[340283121,1729003847710,-150.0,0.0002493,30]
[340283123,1729003847719,-157.971349,0.00024931,7]
[340283125,1729003847730,-157.971349,0.00024931,7]
[340283126,1729003847739,-157.971349,0.00024931,7]
[340283128,1729003847749,-157.971349,0.00024931,7]
[340283130,1729003847758,-157.971349,0.00024931,7]
[340283132,1729003847768,-157.971349,0.00024931,7]
[340283134,1729003847779,-157.971349,0.00024931,7]
[340283135,1729003847789,-150.341723,0.00024931,7]
[340283136,1729003847799,-150.341723,0.00024931,7]
[340283137,1729003847809,-150.341723,0.00024931,7]
[340283138,1729003847819,-560.34120001,0.00024931,7]
[340283139,1729003847829,-704.169704,0.00024931,7]
[340283140,1729003847838,-704.169704,0.00024931,7]
[340283141,1729003847848,-704.169704,0.00024931,7]
[340283142,1729003847862,-704.169704,0.00024931,7]
[340283143,1729003847871,-704.169704,0.00024931,7]
[340283144,1729003847880,-704.169704,0.00024931,7]
[340283145,1729003847890,-704.169704,0.00024931,7]
[340283146,1729003847900,-704.169704,0.00024931,7]
[340283147,1729003847910,-500.0,0.00024931,7]
[340283148,1729003847921,-351.52610165,0.00024931,7]
[340283150,1729004056714,178.69,0.00025517,120]
[340283151,1729004235848,300.0,0.00027,120]
[340283152,1729004281814,600.0,0.00027,120]
[340283154,1729004443618,252.46543568,0.00027,120]
[340283155,1729004919946,2964.9990877,0.0002,40]
[340283163,1729005032247,-252.55343679,0.00010859,2]
[340283164,1729005032316,-2137.76750163,0.00010859,2]
[340283165,1729005032329,-402.64497673,0.00010959,2]
[340283166,1729005032340,-163.63,0.00010959,2]
[340283167,1729005032350,-500.0,0.00010959,2]
[340283168,1729005032360,-435.29664615,0.00010959,2]
[340283169,1729005032370,-158.25,0.00010959,2]
[340283170,1729005032380,-150.0,0.00016438,2]
[340283171,1729005032389,-287.78716393,0.00016575,2]
[340283172,1729005032399,-500.0,0.0001678,2]
[340283173,1729005032412,-488.18,0.00018556,2]
[340283174,1729005032422,-500.0,0.00018972,2]
[340283175,1729005032432,-500.0,0.00018972,2]
[340283176,1729005032442,-330.89,0.00018972,2]
[340283177,1729005032452,-499.99,0.00018972,2]
[340283178,1729005032461,-150.99,0.00019452,2]
[340283179,1729005032472,-353.54,0.00019452,2]
[340283180,1729005032490,-8340.76173217,0.0002,7]
[340283187,1729005032628,-500.0,0.00020068,2]
[340283191,1729005032684,-900.0,0.00020068,2]
[340283193,1729005032694,-600.0,0.00020068,2]
[340283195,1729005032704,-1000.0,0.00020253,2]
[340283197,1729005032713,-820.62,0.00020272,2]
[340283199,1729005032722,-298.95,0.0002038,2]
[340283201,1729005032740,-1567.0,0.000204,3]
[340283203,1729005032750,-250.0,0.0002045,2]
[340283205,1729005032759,-200.0,0.00020453,2]
[340283207,1729005032769,-187.28,0.00020474,2]
[340283209,1729005032779,-556.30266181,0.000205,2]
[340283211,1729005032788,-1500.0,0.000205,2]
[340283213,1729005032797,-1318.34250766,0.000205,2]
[340283215,1729005032806,-250.0,0.00020502,2]
[340283217,1729005032815,-855.0,0.00020526,2]
[340283219,1729005032826,-14050.31,0.00020527,2]
[340283221,1729005032835,-5200.81,0.0002057,2]
[340283223,1729005032845,-150.0,0.000207,2]
[340283225,1729005032855,-250.0,0.00020727,2]
[340283226,1729005032864,-2751.0,0.00020785,2]
[340283227,1729005032873,-488.18,0.0002082,2]
[340283229,1729005032883,-150.0,0.0002091,2]
[340283231,1729005032893,-1000.0,0.00020999,2]
[340283233,1729005032903,-563.95,0.00021,2]
[340283235,1729005032913,-167.24,0.00021008,2]
[340283237,1729005032922,-163.21,0.00021008,2]
[340283239,1729005032932,-163.21,0.00021113,2]
[340283241,1729005032942,-900.0,0.00021164,2]
[340283243,1729005032951,-600.0,0.00021164,2]
[340283245,1729005032962,-500.0,0.00021164,2]
[340283247,1729005032971,-150.0,0.000213,2]
[340283249,1729005032988,-314.48,0.00021814,2]
[340283251,1729005032999,-174.78,0.00021918,2]
[340283252,1729005033008,-1356.08,0.00022137,30]
[340283254,1729005033018,-900.0,0.0002226,2]
[340283256,1729005033028,-600.0,0.0002226,2]
[340283258,1729005033037,-500.0,0.0002226,2]
[340283260,1729005033047,-180.0,0.0002264,2]